Workbook

Sheet Sheet1
A1: Profit and Loss (6 Monroe)
A2: Kajen LLC
A3: January 1, 2021-December 31, 2025
A5: Distribution account | B5: 2021 | C5: 2022 | D5: 2023 | E5: 2024 | F5: 2025 | G5: Total
A6: Income
A7: Rental Income | B7: 89050 | C7: 76250 | D7: 84675 | E7: 86875 | F7: 86150 | G7: =B7+C7+D7+E7+F7 -> 423000
A8: Unapplied Cash Payment Income | B8: -814 | G8: =B8+C8+D8+E8+F8 -> -814
A9: Total for Income | B9: =SUM(B7:B8) -> 88236 | C9: =SUM(C7:C8) -> 76250 | D9: =SUM(D7:D8) -> 84675 | E9: 86875 | F9: 86150 | G9: 422186
A10: Gross Profit | B10: =B9 -> 88236 | C10: =C9 -> 76250 | D10: 84675 | E10: 86875 | F10: 86150 | G10: 422186
A11: Expenses
A12: Advertising and Promotion | F12: 30 | G12: =B12+C12+D12+E12+F12 -> 30
A13: Business Licenses and Permits | C13: 400 | D13: 50.6 | E13: 100 | F13: 150 | G13: 700.6
A14: Commission | B14: 200 | G14: 200
A15: Depreciation Expense | G15: 0
A16: Filing Fees | B16: 2137.5 | C16: 65.22 | D16: 286.83 | E16: -47 | G16: 2442.55
A17: Miscellaneous Expense | G17: 0
A18: Professional Fees | G18: 0
A19: Legal | B19: 1325 | G19: 1325
A20: Total for Professional Fees | B20: =SUM(B12:B19) -> 3662.5 | C20: =SUM(C12:C19) -> 465.22 | D20: 337.43 | E20: 53 | F20: 180 | G20: 4698.15
A21: Repairs and Maintenance | B21: 6875.25 | C21: 7865.33 | D21: 7596.32 | E21: 6593.79 | F21: 8773.55 | G21: 37704.24
A22: Driveway | E22: 221.66 | F22: 225.17 | G22: 446.83
A23: Garbage | B23: 1478.97 | D23: 272 | E23: 150 | G23: 1900.97
A24: Total for Repairs and Maintenance | B24: =SUM(B21:B23) -> 8354.22 | C24: =SUM(C21:C23) -> 7865.33 | D24: 7868.32 | E24: 6965.45 | F24: 8998.72 | G24: 40052.04
A25: Staff Leasing
A26: Seven Valley Realty Inc. | C26: 9.9 | E26: 432.38 | G26: =B26+C26+D26+E26+F26 -> 442.28
A27: Management Expense | B27: 3726.22 | C27: 1098.67 | D27: 2751.79 | E27: 25.35 | F27: 870.51 | G27: 8472.54
A28: Total for Seven Valley Realty Inc. | B28: =SUM(B26:B27) -> 3726.22 | C28: =SUM(C26:C27) -> 1108.57 | D28: 2751.79 | E28: 457.73 | F28: 870.51 | G28: 8914.82
A29: Total for Staff Leasing | B29: =B28 -> 3726.22 | C29: =C28 -> 1108.57 | D29: 2751.79 | E29: 457.73 | F29: 870.51 | G29: 8914.82
A30: Taxes - Property | B30: 10604.2 | C30: 4393.17 | D30: 24635.26 | E30: 12198.2 | F30: 10741.21 | G30: 62572.04
A31: Utilities | B31: 4310.26 | C31: 8822.84 | D31: 9997.18 | E31: 11037.36 | F31: 8863.35 | G31: 43030.99
A32: Total for Expenses | B32: =B31+B30+B29+B24+B20 -> 30657.4 | C32: =C31+C30+C29+C24+C20 -> 22655.13 | D32: 45589.98 | E32: 30711.74 | F32: 29653.79 | G32: 159268.04
A33: Net Operating Income | B33: =+B10-B32 -> 57578.6 | C33: =C10-C32 -> 53594.87 | D33: =+D10-D32 -> 39085.02 | E33: =E10-E32 -> 56163.26 | F33: =+F10-F32 -> 56496.21 | G33: =G10-G32 -> 262917.96
A34: Net Other Income
A35: Net Income | B35: =B33 -> 57578.6 | C35: =C33 -> 53594.87 | D35: 39085.02 | E35: 56163.26 | F35: 56496.21 | G35: 262917.96
A39: Cash Basis Tuesday, February 10, 2026 08:27 PM GMTZ
